[Event "Titled Tuesday Blitz October 11 Late 2022"]
[White "Ambartsumova, Karina"]
[Black "Bogaudinov, Rushan"]
[WhiteFideId "4166299"]
[BlackFideId "4129288"]
[WhiteElo "2299"]
[BlackElo "1945"]
[Result "1/2-1/2"]
[Round "06"]
[TimeControl "180+1"]
[Date "2022.10.12"]
[WhiteClock "0:00:11"]
[BlackClock "0:00:26"]

1. Nf3 {[%clk 0:03:00]}  Nf6 {[%clk 0:02:58]} 2. d4 {[%clk 0:03:00]}  d5 {[%clk 0:02:57]} 3. c4 {[%clk 0:02:59]}  dxc4 {[%clk 0:02:57]} 4. e3 {[%clk 0:02:56]}  e6 {[%clk 0:02:57]} 5. Bxc4 {[%clk 0:02:55]}  c5 {[%clk 0:02:57]} 6. O-O {[%clk 0:02:54]}  Be7 {[%clk 0:02:58]} 7. Qe2 {[%clk 0:02:52]}  a6 {[%clk 0:02:57]} 8. Rd1 {[%clk 0:02:52]}  Qc7 {[%clk 0:02:54]} 9. a4 {[%clk 0:02:48]}  O-O {[%clk 0:02:53]} 10. Nc3 {[%clk 0:02:45]}  Nc6 {[%clk 0:02:51]} 11. h3 {[%clk 0:02:20]}  b6 {[%clk 0:02:51]} 12. d5 {[%clk 0:02:15]}  exd5 {[%clk 0:02:50]} 13. Nxd5 {[%clk 0:02:15]}  Nxd5 {[%clk 0:02:49]} 14. Bxd5 {[%clk 0:02:16]}  Bb7 {[%clk 0:02:47]} 15. e4 {[%clk 0:02:12]}  Rad8 {[%clk 0:02:38]} 16. Bg5 {[%clk 0:02:10]}  Bxg5 {[%clk 0:02:35]} 17. Nxg5 {[%clk 0:02:10]}  h6 {[%clk 0:02:35]} 18. Nf3 {[%clk 0:02:00]}  Nb4 {[%clk 0:02:32]} 19. Bxb7 {[%clk 0:01:56]}  Qxb7 {[%clk 0:02:32]} 20. Qc4 {[%clk 0:01:55]}  Rxd1+ {[%clk 0:02:23]} 21. Rxd1 {[%clk 0:01:56]}  Re8 {[%clk 0:02:23]} 22. e5 {[%clk 0:01:47]}  Qc7 {[%clk 0:02:13]} 23. Rd6 {[%clk 0:01:20]}  b5 {[%clk 0:02:02]} 24. axb5 {[%clk 0:01:18]}  axb5 {[%clk 0:02:00]} 25. Qxb5 {[%clk 0:01:15]}  Rxe5 {[%clk 0:01:47]} 26. Nxe5 {[%clk 0:01:14]}  Qxd6 {[%clk 0:01:47]} 27. Qe8+ {[%clk 0:01:12]}  Kh7 {[%clk 0:01:36]} 28. Qh8+ {[%clk 0:00:59]}  Kxh8 {[%clk 0:01:35]} 29. Nxf7+ {[%clk 0:01:00]}  Kg8 {[%clk 0:01:35]} 30. Nxd6 {[%clk 0:01:00]}  Nd3 {[%clk 0:01:34]} 31. Nc4 {[%clk 0:00:59]}  Kf7 {[%clk 0:01:33]} 32. Kf1 {[%clk 0:00:59]}  Ke6 {[%clk 0:01:33]} 33. Ke2 {[%clk 0:00:55]}  Nf4+ {[%clk 0:01:25]} 34. Kf3 {[%clk 0:00:55]}  g5 {[%clk 0:01:25]} 35. h4 {[%clk 0:00:52]}  Kd5 {[%clk 0:01:23]} 36. Ne3+ {[%clk 0:00:49]}  Kd4 {[%clk 0:01:22]} 37. hxg5 {[%clk 0:00:42]}  hxg5 {[%clk 0:01:23]} 38. Kg4 {[%clk 0:00:37]}  Nd3 {[%clk 0:01:22]} 39. Nd1 {[%clk 0:00:36]}  Ne1 {[%clk 0:01:21]} 40. g3 {[%clk 0:00:30]}  Kd3 {[%clk 0:01:21]} 41. f4 {[%clk 0:00:22]}  gxf4 {[%clk 0:01:18]} 42. gxf4 {[%clk 0:00:23]}  Kc2 {[%clk 0:01:14]} 43. f5 {[%clk 0:00:17]}  Nd3 {[%clk 0:01:11]} 44. f6 {[%clk 0:00:15]}  Ne5+ {[%clk 0:01:07]} 45. Kf5 {[%clk 0:00:16]}  Nf7 {[%clk 0:01:07]} 46. Ne3+ {[%clk 0:00:12]}  Kxb2 {[%clk 0:01:05]} 47. Nc4+ {[%clk 0:00:12]}  Kb3 {[%clk 0:01:01]} 48. Kg6 {[%clk 0:00:12]}  Nd8 {[%clk 0:00:56]} 49. Na5+ {[%clk 0:00:12]}  Kb4 {[%clk 0:00:44]} 50. Nb7 {[%clk 0:00:12]}  Ne6 {[%clk 0:00:34]} 51. Nd6 {[%clk 0:00:08]}  c4 {[%clk 0:00:30]} 52. Nxc4 {[%clk 0:00:08]}  Kxc4 {[%clk 0:00:30]} 53. Kf7 {[%clk 0:00:09]}  Kd5 {[%clk 0:00:30]} 54. Ke7 {[%clk 0:00:09]}  Ke5 {[%clk 0:00:30]} 55. f7 {[%clk 0:00:09]}  Kf5 {[%clk 0:00:30]} 56. Kd7 {[%clk 0:00:09]}  Kf6 {[%clk 0:00:30]} 57. Ke8 {[%clk 0:00:09]}  Kg7 {[%clk 0:00:26]} 58. Ke7 {[%clk 0:00:09]}  Nf8 {[%clk 0:00:26]} 59. Ke8 {[%clk 0:00:10]}  Ng6 {[%clk 0:00:26]} 60. f8=Q+ {[%clk 0:00:11]}  Nxf8 {[%clk 0:00:26]} 1/2-1/2


[Site "https://www.chess.com"]

[Event "Titled Tuesday Blitz October 11 Late 2022"]
[White "Aung Thant Zin"]
[Black "Zaloznyy, Mike"]
[WhiteFideId "13000063"]
[BlackFideId "2023075"]
[WhiteElo "2278"]
[BlackElo "2126"]
[Result "0-1"]
[Round "06"]
[TimeControl "180+1"]
[Date "2022.10.12"]
[WhiteClock "0:00:42"]
[BlackClock "0:01:12"]

1. e4 {[%clk 0:03:00]}  d6 {[%clk 0:03:00]} 2. d4 {[%clk 0:02:59]}  Nf6 {[%clk 0:03:00]} 3. Nc3 {[%clk 0:02:59]}  e5 {[%clk 0:03:00]} 4. Nf3 {[%clk 0:02:58]}  Nbd7 {[%clk 0:03:00]} 5. Bc4 {[%clk 0:02:55]}  Be7 {[%clk 0:03:00]} 6. O-O {[%clk 0:02:52]}  c6 {[%clk 0:03:00]} 7. Bb3 {[%clk 0:02:51]}  Qc7 {[%clk 0:03:00]} 8. h3 {[%clk 0:02:49]}  h6 {[%clk 0:03:00]} 9. a3 {[%clk 0:02:40]}  g5 {[%clk 0:02:59]} 10. dxe5 {[%clk 0:02:35]}  dxe5 {[%clk 0:02:59]} 11. Ne1 {[%clk 0:02:34]}  Nf8 {[%clk 0:02:57]} 12. Be3 {[%clk 0:02:09]}  Ng6 {[%clk 0:02:56]} 13. Qe2 {[%clk 0:01:58]}  Rg8 {[%clk 0:02:56]} 14. f3 {[%clk 0:01:47]}  Nf4 {[%clk 0:02:56]} 15. Bxf4 {[%clk 0:01:46]}  gxf4 {[%clk 0:02:56]} 16. Kh2 {[%clk 0:01:43]}  Nh5 {[%clk 0:02:53]} 17. Qf2 {[%clk 0:01:36]}  Ng3 {[%clk 0:02:50]} 18. Rg1 {[%clk 0:01:36]}  Bh4 {[%clk 0:02:47]} 19. Qd2 {[%clk 0:01:34]}  Bd7 {[%clk 0:02:31]} 20. Rd1 {[%clk 0:01:29]}  O-O-O {[%clk 0:02:23]} 21. Bxf7 {[%clk 0:01:25]}  Rg7 {[%clk 0:02:10]} 22. Bb3 {[%clk 0:01:12]}  Bxh3 {[%clk 0:02:10]} 23. Qxd8+ {[%clk 0:01:10]}  Bxd8 {[%clk 0:02:09]} 24. Rxd8+ {[%clk 0:01:11]}  Qxd8 {[%clk 0:02:08]} 25. gxh3 {[%clk 0:01:05]}  Qd2+ {[%clk 0:01:49]} 26. Ng2 {[%clk 0:01:02]}  Qf2 {[%clk 0:01:27]} 27. Be6+ {[%clk 0:00:58]}  Kc7 {[%clk 0:01:24]} 28. Bg4 {[%clk 0:00:49]}  h5 {[%clk 0:01:20]} 29. Nd1 {[%clk 0:00:48]}  Qxc2 {[%clk 0:01:19]} 30. Bf5 {[%clk 0:00:43]}  Nf1+ {[%clk 0:01:12]} 31. Kh1 {[%clk 0:00:42]}  Qxd1 {[%clk 0:01:12]} 0-1


[Site "https://www.chess.com"]

[Event "Titled Tuesday Blitz October 11 Late 2022"]
[White "Bazeev, German"]
[Black "Krstic, Milos"]
[WhiteFideId "24119350"]
[BlackFideId "954888"]
[WhiteElo "2493"]
[BlackElo "2194"]
[Result "1-0"]
[Round "06"]
[TimeControl "180+1"]
[Date "2022.10.12"]
[WhiteClock "0:00:55"]
[BlackClock "0:00:42"]

1. d4 {[%clk 0:03:00]}  Nf6 {[%clk 0:02:59]} 2. c4 {[%clk 0:03:01]}  e6 {[%clk 0:02:59]} 3. Nf3 {[%clk 0:03:01]}  Bb4+ {[%clk 0:02:58]} 4. Bd2 {[%clk 0:03:01]}  Qe7 {[%clk 0:02:58]} 5. g3 {[%clk 0:03:01]}  Nc6 {[%clk 0:02:58]} 6. Bg2 {[%clk 0:03:02]}  O-O {[%clk 0:02:58]} 7. O-O {[%clk 0:02:54]}  Bxd2 {[%clk 0:02:56]} 8. Qxd2 {[%clk 0:02:55]}  d5 {[%clk 0:02:54]} 9. cxd5 {[%clk 0:02:52]}  exd5 {[%clk 0:02:53]} 10. Nc3 {[%clk 0:02:48]}  Be6 {[%clk 0:02:42]} 11. e3 {[%clk 0:02:46]}  h6 {[%clk 0:02:40]} 12. Rac1 {[%clk 0:02:45]}  a6 {[%clk 0:02:40]} 13. Ne1 {[%clk 0:02:39]}  Nd8 {[%clk 0:02:39]} 14. Nd3 {[%clk 0:02:39]}  c6 {[%clk 0:02:38]} 15. Ne5 {[%clk 0:02:36]}  Bf5 {[%clk 0:02:38]} 16. f3 {[%clk 0:02:32]}  Bh7 {[%clk 0:02:36]} 17. Rfe1 {[%clk 0:02:31]}  Ne6 {[%clk 0:02:36]} 18. Ne2 {[%clk 0:02:03]}  Rfd8 {[%clk 0:02:24]} 19. Nf4 {[%clk 0:02:03]}  Nd7 {[%clk 0:02:21]} 20. Ned3 {[%clk 0:02:01]}  Qd6 {[%clk 0:02:16]} 21. Qb4 {[%clk 0:01:54]}  Qxb4 {[%clk 0:02:07]} 22. Nxb4 {[%clk 0:01:51]}  Nxf4 {[%clk 0:02:07]} 23. gxf4 {[%clk 0:01:48]}  a5 {[%clk 0:02:04]} 24. Nc2 {[%clk 0:01:48]}  Bxc2 {[%clk 0:02:00]} 25. Rxc2 {[%clk 0:01:49]}  Ra6 {[%clk 0:02:00]} 26. Bf1 {[%clk 0:01:45]}  Rb6 {[%clk 0:02:00]} 27. Kf2 {[%clk 0:01:44]}  f5 {[%clk 0:01:56]} 28. Bd3 {[%clk 0:01:42]}  g6 {[%clk 0:01:56]} 29. h4 {[%clk 0:01:40]}  h5 {[%clk 0:01:56]} 30. b3 {[%clk 0:01:37]}  Kf7 {[%clk 0:01:53]} 31. Rc3 {[%clk 0:01:27]}  a4 {[%clk 0:01:48]} 32. bxa4 {[%clk 0:01:26]}  Ra8 {[%clk 0:01:45]} 33. Ra3 {[%clk 0:01:25]}  Rb2+ {[%clk 0:01:41]} 34. Re2 {[%clk 0:01:25]}  Rb4 {[%clk 0:01:40]} 35. a5 {[%clk 0:01:24]}  Nb6 {[%clk 0:01:40]} 36. Rc2 {[%clk 0:01:22]}  Na4 {[%clk 0:01:36]} 37. Rb3 {[%clk 0:01:19]}  Rxb3 {[%clk 0:01:01]} 38. axb3 {[%clk 0:01:17]}  Rxa5 {[%clk 0:01:02]} 39. bxa4 {[%clk 0:01:17]}  Rxa4 {[%clk 0:01:02]} 40. Rb2 {[%clk 0:01:17]}  b5 {[%clk 0:01:03]} 41. Rc2 {[%clk 0:01:04]}  Ra6 {[%clk 0:01:02]} 42. Ke2 {[%clk 0:01:05]}  Ke6 {[%clk 0:01:00]} 43. Kd2 {[%clk 0:01:06]}  Kd6 {[%clk 0:01:00]} 44. Rc1 {[%clk 0:01:05]}  Ke6 {[%clk 0:00:58]} 45. Kc3 {[%clk 0:01:02]}  Ra3+ {[%clk 0:00:55]} 46. Kd2 {[%clk 0:01:02]}  Ra2+ {[%clk 0:00:54]} 47. Bc2 {[%clk 0:01:02]}  b4 {[%clk 0:00:53]} 48. Rb1 {[%clk 0:01:01]}  Kd6 {[%clk 0:00:42]} 49. Rxb4 {[%clk 0:00:56]}  Ra1 {[%clk 0:00:42]} 50. Rb1 {[%clk 0:00:55]} 1-0


[Site "https://www.chess.com"]

[Event "Titled Tuesday Blitz October 11 Late 2022"]
[White "Bilan, Danila"]
[Black "Gubajdullin, Alexei"]
[WhiteFideId "24161918"]
[BlackFideId "4141202"]
[WhiteElo "2203"]
[BlackElo "2200"]
[Result "1/2-1/2"]
[Round "06"]
[TimeControl "180+1"]
[Date "2022.10.12"]
[WhiteClock "0:00:08"]
[BlackClock "0:00:07"]

1. d4 {[%clk 0:02:52]}  Nf6 {[%clk 0:02:59]} 2. Nf3 {[%clk 0:02:52]}  g6 {[%clk 0:02:59]} 3. Bg5 {[%clk 0:02:51]}  Bg7 {[%clk 0:02:59]} 4. c3 {[%clk 0:02:50]}  O-O {[%clk 0:02:59]} 5. Nbd2 {[%clk 0:02:51]}  d6 {[%clk 0:02:58]} 6. e4 {[%clk 0:02:51]}  Nc6 {[%clk 0:02:58]} 7. Qc2 {[%clk 0:02:50]}  e5 {[%clk 0:02:58]} 8. dxe5 {[%clk 0:02:50]}  Nxe5 {[%clk 0:02:58]} 9. Nxe5 {[%clk 0:02:48]}  dxe5 {[%clk 0:02:58]} 10. Bc4 {[%clk 0:02:48]}  h6 {[%clk 0:02:55]} 11. Be3 {[%clk 0:02:41]}  Qe7 {[%clk 0:02:45]} 12. h3 {[%clk 0:02:38]}  Nh5 {[%clk 0:02:43]} 13. O-O {[%clk 0:02:28]}  Qf6 {[%clk 0:02:37]} 14. Be2 {[%clk 0:02:01]}  Nf4 {[%clk 0:02:37]} 15. Bxf4 {[%clk 0:02:01]}  Qxf4 {[%clk 0:02:34]} 16. Nc4 {[%clk 0:01:52]}  h5 {[%clk 0:02:30]} 17. Ne3 {[%clk 0:01:50]}  Qg5 {[%clk 0:02:19]} 18. Kh1 {[%clk 0:01:31]}  f5 {[%clk 0:02:17]} 19. exf5 {[%clk 0:01:18]}  gxf5 {[%clk 0:02:16]} 20. f4 {[%clk 0:01:08]}  exf4 {[%clk 0:02:10]} 21. Nd5 {[%clk 0:01:04]}  Be5 {[%clk 0:02:07]} 22. Qc1 {[%clk 0:00:47]}  Be6 {[%clk 0:01:56]} 23. Nxf4 {[%clk 0:00:41]}  Bf7 {[%clk 0:01:56]} 24. Nxh5 {[%clk 0:00:28]}  f4 {[%clk 0:01:50]} 25. Nxf4 {[%clk 0:00:22]}  Bd6 {[%clk 0:01:39]} 26. Nh5 {[%clk 0:00:19]}  Qe5 {[%clk 0:01:32]} 27. Nf6+ {[%clk 0:00:17]}  Kg7 {[%clk 0:01:30]} 28. Ng4 {[%clk 0:00:15]}  Qh5 {[%clk 0:01:18]} 29. Rf5 {[%clk 0:00:15]}  Qh4 {[%clk 0:01:14]} 30. Rg5+ {[%clk 0:00:08]}  Kh8 {[%clk 0:01:13]} 31. Nf6 {[%clk 0:00:05]}  Bf4 {[%clk 0:00:59]} 32. Rg4 {[%clk 0:00:05]}  Qxg4 {[%clk 0:00:57]} 33. Nxg4 {[%clk 0:00:06]}  Bxc1 {[%clk 0:00:57]} 34. Rxc1 {[%clk 0:00:06]}  Bxa2 {[%clk 0:00:56]} 35. Bf3 {[%clk 0:00:06]}  c6 {[%clk 0:00:54]} 36. Ne5 {[%clk 0:00:05]}  Kg7 {[%clk 0:00:52]} 37. Kh2 {[%clk 0:00:05]}  Rae8 {[%clk 0:00:48]} 38. Nd3 {[%clk 0:00:05]}  Bd5 {[%clk 0:00:44]} 39. Bxd5 {[%clk 0:00:03]}  cxd5 {[%clk 0:00:44]} 40. Nb4 {[%clk 0:00:02]}  Re2 {[%clk 0:00:43]} 41. Nxd5 {[%clk 0:00:01]}  Rff2 {[%clk 0:00:43]} 42. Rg1 {[%clk 0:00:02]}  Rxb2 {[%clk 0:00:42]} 43. h4 {[%clk 0:00:01]}  a5 {[%clk 0:00:41]} 44. Ne3 {[%clk 0:00:02]}  Rfe2 {[%clk 0:00:27]} 45. Ng4 {[%clk 0:00:02]}  a4 {[%clk 0:00:26]} 46. h5 {[%clk 0:00:02]}  a3 {[%clk 0:00:25]} 47. h6+ {[%clk 0:00:03]}  Kg6 {[%clk 0:00:25]} 48. Rd1 {[%clk 0:00:03]}  Rxg2+ {[%clk 0:00:18]} 49. Kh3 {[%clk 0:00:03]}  Rxg4 {[%clk 0:00:17]} 50. Kxg4 {[%clk 0:00:04]}  a2 {[%clk 0:00:17]} 51. Ra1 {[%clk 0:00:05]}  Kxh6 {[%clk 0:00:15]} 52. Kf4 {[%clk 0:00:05]}  Kg6 {[%clk 0:00:14]} 53. Ke4 {[%clk 0:00:06]}  Kf6 {[%clk 0:00:13]} 54. Kd4 {[%clk 0:00:06]}  Ke6 {[%clk 0:00:13]} 55. c4 {[%clk 0:00:07]}  Kd6 {[%clk 0:00:13]} 56. Kc3 {[%clk 0:00:07]}  Rh2 {[%clk 0:00:12]} 57. Kb3 {[%clk 0:00:08]}  Kc5 {[%clk 0:00:11]} 58. Rf1 {[%clk 0:00:05]}  Rh3+ {[%clk 0:00:08]} 59. Kxa2 {[%clk 0:00:05]}  Kxc4 {[%clk 0:00:08]} 60. Kb2 {[%clk 0:00:06]}  Rh2+ {[%clk 0:00:08]} 61. Kb1 {[%clk 0:00:06]}  Re2 {[%clk 0:00:07]} 62. Rc1+ {[%clk 0:00:06]}  Kb3 {[%clk 0:00:06]} 63. Rh1 {[%clk 0:00:06]}  b5 {[%clk 0:00:06]} 64. Rh3+ {[%clk 0:00:06]}  Ka4 {[%clk 0:00:06]} 65. Rh4+ {[%clk 0:00:06]}  b4 {[%clk 0:00:07]} 66. Rh3 {[%clk 0:00:06]}  Rf2 {[%clk 0:00:07]} 67. Rg3 {[%clk 0:00:07]}  b3 {[%clk 0:00:06]} 68. Rg8 {[%clk 0:00:05]}  Ka3 {[%clk 0:00:06]} 69. Ra8+ {[%clk 0:00:05]}  Kb4 {[%clk 0:00:06]} 70. Rb8+ {[%clk 0:00:06]}  Ka3 {[%clk 0:00:07]} 71. Ra8+ {[%clk 0:00:06]}  Kb4 {[%clk 0:00:07]} 72. Rb8+ {[%clk 0:00:07]}  Kc3 {[%clk 0:00:07]} 73. Rc8+ {[%clk 0:00:07]}  Kb4 {[%clk 0:00:07]} 74. Rb8+ {[%clk 0:00:08]} 1/2-1/2


[Site "https://www.chess.com"]

[Event "Titled Tuesday Blitz October 11 Late 2022"]
[White "Bilych, Olexiy"]
[Black "Kamsky, Gata"]
[WhiteFideId "14156504"]
[BlackFideId "2000024"]
[WhiteElo "2320"]
[BlackElo "2666"]
[Result "0-1"]
[Round "06"]
[TimeControl "180+1"]
[Date "2022.10.11"]
[WhiteClock "0:00:55"]
[BlackClock "0:01:14"]

1. e4 {[%clk 0:03:00]}  c5 {[%clk 0:02:51]} 2. Nf3 {[%clk 0:02:59]}  e6 {[%clk 0:02:51]} 3. d4 {[%clk 0:02:59]}  cxd4 {[%clk 0:02:50]} 4. Nxd4 {[%clk 0:03:00]}  a6 {[%clk 0:02:50]} 5. c4 {[%clk 0:02:59]}  Qc7 {[%clk 0:02:46]} 6. Nc3 {[%clk 0:02:59]}  b6 {[%clk 0:02:45]} 7. a3 {[%clk 0:02:57]}  Bb7 {[%clk 0:02:45]} 8. Be2 {[%clk 0:02:57]}  Nf6 {[%clk 0:02:46]} 9. f3 {[%clk 0:02:57]}  d6 {[%clk 0:02:40]} 10. Be3 {[%clk 0:02:56]}  Nbd7 {[%clk 0:02:40]} 11. Rc1 {[%clk 0:02:56]}  Rc8 {[%clk 0:02:39]} 12. g4 {[%clk 0:02:55]}  h6 {[%clk 0:02:36]} 13. Kd2 {[%clk 0:02:54]}  Ne5 {[%clk 0:02:32]} 14. Kc2 {[%clk 0:02:52]}  Nxc4 {[%clk 0:02:20]} 15. Bxc4 {[%clk 0:02:53]}  Qxc4 {[%clk 0:02:20]} 16. Kb1 {[%clk 0:02:53]}  Qc7 {[%clk 0:02:20]} 17. Nd5 {[%clk 0:02:49]}  Qb8 {[%clk 0:02:15]} 18. Nxb6 {[%clk 0:02:03]}  Rxc1+ {[%clk 0:01:59]} 19. Qxc1 {[%clk 0:02:04]}  Nxe4 {[%clk 0:01:43]} 20. Nc6 {[%clk 0:02:03]}  Qc7 {[%clk 0:01:41]} 21. Na5 {[%clk 0:02:01]}  Nc5 {[%clk 0:01:40]} 22. Nxb7 {[%clk 0:01:44]}  Qxb7 {[%clk 0:01:39]} 23. Nc4 {[%clk 0:01:29]}  Qxf3 {[%clk 0:01:36]} 24. Rf1 {[%clk 0:01:19]}  Qe4+ {[%clk 0:01:34]} 25. Ka2 {[%clk 0:01:20]}  Be7 {[%clk 0:01:28]} 26. b4 {[%clk 0:01:00]}  Nd3 {[%clk 0:01:15]} 27. Qc2 {[%clk 0:00:55]}  Nxb4+ {[%clk 0:01:14]} 0-1


[Site "https://www.chess.com"]

[Event "Titled Tuesday Blitz October 11 Late 2022"]
[White "Bluebaum, Matthias"]
[Black "Gajewski, Grzegorz"]
[WhiteFideId "24651516"]
[BlackFideId "1116207"]
[WhiteElo "2633"]
[BlackElo "2547"]
[Result "1-0"]
[Round "06"]
[TimeControl "180+1"]
[Date "2022.10.11"]
[WhiteClock "0:00:07"]
[BlackClock "0:00:03"]

1. d4 {[%clk 0:03:00]}  Nf6 {[%clk 0:03:00]} 2. c4 {[%clk 0:03:00]}  e6 {[%clk 0:03:00]} 3. Nc3 {[%clk 0:03:00]}  Bb4 {[%clk 0:03:00]} 4. e3 {[%clk 0:03:01]}  d5 {[%clk 0:03:00]} 5. Bd2 {[%clk 0:03:01]}  O-O {[%clk 0:02:59]} 6. Nf3 {[%clk 0:03:02]}  Nbd7 {[%clk 0:02:58]} 7. Rc1 {[%clk 0:03:02]}  Be7 {[%clk 0:02:56]} 8. cxd5 {[%clk 0:02:55]}  exd5 {[%clk 0:02:56]} 9. Bd3 {[%clk 0:02:56]}  c6 {[%clk 0:02:53]} 10. O-O {[%clk 0:02:56]}  Bd6 {[%clk 0:02:53]} 11. h3 {[%clk 0:02:56]}  Re8 {[%clk 0:02:53]} 12. Qc2 {[%clk 0:02:57]}  Nf8 {[%clk 0:02:49]} 13. Rfe1 {[%clk 0:02:42]}  Ng6 {[%clk 0:02:46]} 14. Rb1 {[%clk 0:02:38]}  Bd7 {[%clk 0:02:27]} 15. a3 {[%clk 0:02:27]}  Qc8 {[%clk 0:02:21]} 16. Ng5 {[%clk 0:02:08]}  Qc7 {[%clk 0:01:21]} 17. e4 {[%clk 0:02:01]}  dxe4 {[%clk 0:01:19]} 18. Ncxe4 {[%clk 0:02:02]}  Nxe4 {[%clk 0:01:19]} 19. Nxe4 {[%clk 0:01:59]}  Bf4 {[%clk 0:01:18]} 20. Bc3 {[%clk 0:01:59]}  Rad8 {[%clk 0:01:07]} 21. g3 {[%clk 0:01:44]}  Bd6 {[%clk 0:01:06]} 22. Kg2 {[%clk 0:01:37]}  Be6 {[%clk 0:01:04]} 23. h4 {[%clk 0:01:07]}  Bd5 {[%clk 0:00:59]} 24. h5 {[%clk 0:01:07]}  Nf8 {[%clk 0:00:57]} 25. Kg1 {[%clk 0:00:47]}  h6 {[%clk 0:00:57]} 26. Re3 {[%clk 0:00:44]}  Ne6 {[%clk 0:00:51]} 27. Rbe1 {[%clk 0:00:42]}  Bf8 {[%clk 0:00:48]} 28. Qd1 {[%clk 0:00:37]}  f5 {[%clk 0:00:45]} 29. Nc5 {[%clk 0:00:32]}  Qf7 {[%clk 0:00:24]} 30. Nxe6 {[%clk 0:00:31]}  Rxe6 {[%clk 0:00:24]} 31. Rxe6 {[%clk 0:00:27]}  Bxe6 {[%clk 0:00:25]} 32. Qf3 {[%clk 0:00:28]}  Bd6 {[%clk 0:00:16]} 33. Bf1 {[%clk 0:00:05]}  Rf8 {[%clk 0:00:14]} 34. Bg2 {[%clk 0:00:05]}  f4 {[%clk 0:00:10]} 35. gxf4 {[%clk 0:00:03]}  Bxf4 {[%clk 0:00:10]} 36. Qe4 {[%clk 0:00:03]}  Bd5 {[%clk 0:00:07]} 37. Qg6 {[%clk 0:00:03]}  Bxg2 {[%clk 0:00:04]} 38. Qxf7+ {[%clk 0:00:03]}  Kxf7 {[%clk 0:00:05]} 39. Kxg2 {[%clk 0:00:04]}  Bd6 {[%clk 0:00:03]} 40. Kf3 {[%clk 0:00:03]}  Re8 {[%clk 0:00:03]} 41. Rxe8 {[%clk 0:00:03]}  Kxe8 {[%clk 0:00:04]} 42. d5 {[%clk 0:00:04]}  Kf7 {[%clk 0:00:03]} 43. dxc6 {[%clk 0:00:05]}  bxc6 {[%clk 0:00:03]} 44. Kg4 {[%clk 0:00:05]}  g6 {[%clk 0:00:03]} 45. Bd2 {[%clk 0:00:05]}  Bf8 {[%clk 0:00:03]} 46. Be3 {[%clk 0:00:05]}  a6 {[%clk 0:00:04]} 47. f3 {[%clk 0:00:05]}  Bg7 {[%clk 0:00:03]} 48. b3 {[%clk 0:00:06]}  Bf8 {[%clk 0:00:02]} 49. a4 {[%clk 0:00:06]}  Bg7 {[%clk 0:00:03]} 50. Bc5 {[%clk 0:00:06]}  Bf6 {[%clk 0:00:03]} 51. Bb6 {[%clk 0:00:06]}  Bg7 {[%clk 0:00:03]} 52. Ba5 {[%clk 0:00:07]}  Bf6 {[%clk 0:00:03]} 53. Bd2 {[%clk 0:00:07]}  Bg7 {[%clk 0:00:03]} 54. f4 {[%clk 0:00:07]} 1-0


[Site "https://www.chess.com"]

[Event "Titled Tuesday Blitz October 11 Late 2022"]
[White "Castella Garcia, Fausto"]
[Black "Domingo Nunez, Ruben"]
[WhiteFideId "3501922"]
[BlackFideId "22245570"]
[WhiteElo "2246"]
[BlackElo "2406"]
[Result "0-1"]
[Round "06"]
[TimeControl "180+1"]
[Date "2022.10.12"]
[WhiteClock "0:00:04"]
[BlackClock "0:00:05"]

1. e4 {[%clk 0:03:00]}  g6 {[%clk 0:03:00]} 2. d4 {[%clk 0:02:59]}  Bg7 {[%clk 0:03:01]} 3. Nc3 {[%clk 0:02:59]}  c6 {[%clk 0:03:02]} 4. Nf3 {[%clk 0:02:57]}  d5 {[%clk 0:03:02]} 5. Bf4 {[%clk 0:02:58]}  dxe4 {[%clk 0:03:02]} 6. Nxe4 {[%clk 0:02:57]}  Nf6 {[%clk 0:03:03]} 7. Nxf6+ {[%clk 0:02:55]}  exf6 {[%clk 0:03:04]} 8. Bc4 {[%clk 0:02:51]}  O-O {[%clk 0:03:03]} 9. O-O {[%clk 0:02:51]}  a5 {[%clk 0:03:03]} 10. a4 {[%clk 0:02:50]}  Na6 {[%clk 0:03:03]} 11. c3 {[%clk 0:02:50]}  Nc7 {[%clk 0:03:03]} 12. h3 {[%clk 0:02:43]}  Nd5 {[%clk 0:03:03]} 13. Bg3 {[%clk 0:02:42]}  Be6 {[%clk 0:03:03]} 14. Bd3 {[%clk 0:02:36]}  Re8 {[%clk 0:03:02]} 15. Re1 {[%clk 0:02:34]}  f5 {[%clk 0:02:28]} 16. Be5 {[%clk 0:02:16]}  Bh6 {[%clk 0:02:28]} 17. c4 {[%clk 0:01:47]}  Nb4 {[%clk 0:02:27]} 18. Bf1 {[%clk 0:01:47]}  f4 {[%clk 0:02:16]} 19. Qd2 {[%clk 0:01:37]}  f6 {[%clk 0:02:15]} 20. Bxf4 {[%clk 0:01:37]}  Bxf4 {[%clk 0:02:16]} 21. Qxf4 {[%clk 0:01:37]}  Nc2 {[%clk 0:02:17]} 22. Rxe6 {[%clk 0:01:31]}  Rxe6 {[%clk 0:02:18]} 23. Rc1 {[%clk 0:01:29]}  Nb4 {[%clk 0:02:17]} 24. h4 {[%clk 0:01:12]}  Qd6 {[%clk 0:02:12]} 25. Qg4 {[%clk 0:01:08]}  Rae8 {[%clk 0:02:11]} 26. h5 {[%clk 0:01:07]}  Re4 {[%clk 0:02:10]} 27. Qh3 {[%clk 0:01:03]}  Qf4 {[%clk 0:02:02]} 28. hxg6 {[%clk 0:00:59]}  hxg6 {[%clk 0:02:03]} 29. Rc3 {[%clk 0:00:57]}  Kg7 {[%clk 0:01:31]} 30. g3 {[%clk 0:00:56]}  Qg4 {[%clk 0:01:26]} 31. Qg2 {[%clk 0:00:53]}  Qf5 {[%clk 0:01:00]} 32. Nh4 {[%clk 0:00:49]}  Qe6 {[%clk 0:00:56]} 33. d5 {[%clk 0:00:45]}  cxd5 {[%clk 0:00:35]} 34. cxd5 {[%clk 0:00:45]}  Qxd5 {[%clk 0:00:36]} 35. Bb5 {[%clk 0:00:38]}  R8e7 {[%clk 0:00:28]} 36. Kh2 {[%clk 0:00:24]}  Rd4 {[%clk 0:00:18]} 37. Nf3 {[%clk 0:00:20]}  Qh5+ {[%clk 0:00:18]} 38. Qh3 {[%clk 0:00:18]}  Qxh3+ {[%clk 0:00:16]} 39. Kxh3 {[%clk 0:00:18]}  Rd1 {[%clk 0:00:14]} 40. Kg2 {[%clk 0:00:17]}  g5 {[%clk 0:00:14]} 41. Nh2 {[%clk 0:00:13]}  Rd2 {[%clk 0:00:11]} 42. b3 {[%clk 0:00:09]}  Nd5 {[%clk 0:00:11]} 43. Rc5 {[%clk 0:00:06]}  Ne3+ {[%clk 0:00:11]} 44. Kf3 {[%clk 0:00:06]}  Nd1 {[%clk 0:00:11]} 45. Ng4 {[%clk 0:00:06]}  Rf7 {[%clk 0:00:07]} 46. Bc4 {[%clk 0:00:06]}  f5 {[%clk 0:00:06]} 47. Ne5 {[%clk 0:00:04]}  Rxf2# {[%clk 0:00:05]} 0-1


[Site "https://www.chess.com"]